Cogmind - Beta 13 --- EXPLORER MODE // 2024.03.01 @ 15:46:25 Player: PhenomPhear Result: Self-destructed Performance ------------- Evolutions (1) 500 Regions Visited (4) 800 Robots Destroyed (60) 300 Value Destroyed (1175) 1175 Prototype IDs (4) 80 Alien Tech Used (0) 0 Bonus (0) 0 TOTAL SCORE: 2855 Bonus ------- None Cogmind --------- Core Integrity 345/400 Matter 279/300 Energy 265/265 System Corruption 0% Temperature Cool (0) Movement Treading (160) Location -9/Mines Parts ------- > --- POWER (1) -------- Improved Ion Engine > --- PROPULSION (2) --- Improved Treads Improved Treads > --- UTILITY (4) ------ Large Storage Unit Improved Targeting Computer Bomb Drone Bay (13/16) > --- WEAPON (3) ------- Improved Assault Rifle Improved Assault Rifle Improved Assault Rifle > --- INVENTORY (15) --- Light Nuclear Core Improved Treads Improved Treads Medium Storage Unit High-capacity Matter Pod (0) Transport Network Coupler Improved Light Armor Plating Improved Light Armor Plating Trap Extractor (0/4) Heavy Assault Rifle Improved Assault Rifle Improved Assault Rifle Grenade Launcher Grenade Launcher Mining Laser Peak State ------------ > --- POWER ------------ Improved Ion Engine > --- PROPULSION ------- Improved Treads Improved Treads > --- UTILITY ---------- Large Storage Unit Improved Targeting Computer Bomb Drone Bay > --- WEAPON ----------- Improved Assault Rifle Improved Assault Rifle Improved Assault Rifle > --- INVENTORY -------- Light Nuclear Core Improved Treads Improved Treads Medium Storage Unit Transport Network Coupler Utility Shielding Light Armor Plating Light Armor Plating Trap Extractor Heavy Assault Rifle Improved Assault Rifle Improved Assault Rifle Grenade Launcher Grenade Launcher Mining Laser [Rating: 34] Favorites ----------- Power Ion Engine Engine Ion Engine Propulsion Light Treads Treads Light Treads Utility Large Storage Unit Device Bomb Drone Bay Storage Large Storage Unit Processor Targeting Computer Protection Core Shielding Weapon Improved Assault Rifle Energy Gun Small Laser Ballistic Gun Improved Assault Rifle Build | -11 -10 -10 -9 -9 ------- Run | Yrd Mat Min Mat Min Slots Evolved 3 | . 1 . 2 . Power . | . . . . . Propulsion . | . . . . . Utility 2 | . . . 2 . Weapon 1 | . 1 . . . Parts Attached 31 | 8 8 . 13 2 Power 3 | 1 1 . 1 . Engine 3 | 1 1 . 1 . Core . | . . . . . Reactor . | . . . . . Propulsion 6 | 2 . . 4 . Treads 6 | 2 . . 4 . Leg . | . . . . . Wheel . | . . . . . Hover . | . . . . . Flight . | . . . . . Utility 11 | 3 1 . 5 2 Device 4 | . . . 3 1 Storage 3 | 1 1 . . 1 Processor 3 | 1 . . 2 . Hackware . | . . . . . Protection 1 | 1 . . . . Artifact . | . . . . . Weapon 11 | 2 6 . 3 . Energy Gun 1 | . 1 . . . Energy Cannon . | . . . . . Ballistic Gun 10 | 2 5 . 3 . Ballistic Cannon . | . . . . . Launcher . | . . . . . Special Weapon . | . . . . . Impact Weapon . | . . . . . Slashing Weapon . | . . . . . Piercing Weapon . | . . . . . Special Melee Weapon . | . . . . . Unidentified Prototypes 1 | . . . 1 . Parts Lost 1 | . 1 . . . Power 1 | . 1 . . . Propulsion . | . . . . . Utility . | . . . . . Weapon . | . . . . . Highest Loss Streak 1 | . 1 . . . To Critical Strikes . | . . . . . Average Slot Usage (%) 92 | . 97 100 89 90 Engine 10 | . 10 12 10 10 Treads 21 | . 25 25 19 20 Device 6 | . . . 10 9 Storage 10 | . 12 12 10 10 Processor 10 | . 12 12 10 10 Ballistic Gun 32 | . 36 37 30 30 Naked Turns . | . . . . . Heaviest Build 44 | 17 34 34 44 44 Greatest Support 46 | 40 40 40 46 46 Greatest Overweight (x) 1 | . . . 1 . Average Overweight (x) . | . . . . . Largest Inventory Capacity 15 | 10 15 15 15 15 Average Capacity 14 | 7 13 15 15 15 Most Carried 15 | 7 15 15 15 15 Average Carried 13 | 3 11 14 14 14 Final Capacity 15 | 10 15 15 15 15 Final Carried 15 | 7 15 15 15 15 Class Distribution -------------------- 100% | Hacker-Gunner Dominant Class ---------------- Hacker-Gunner | -10/Materials Hacker-Gunner | -10/Mines Hacker-Gunner | -9/Materials Hacker-Gunner | -9/Mines Resources | -11 -10 -10 -9 -9 ----------- Run | Yrd Mat Min Mat Min Matter Collected 1236 | 284 265 . 616 71 Remotely . | . . . . . Salvage Created 2216 | 88 705 11 1290 122 Parts 130 | 3 34 . 86 7 Haulers Intercepted 5 | . 2 . 3 . Recyclers Shooed 2 | . 2 . . . Parts Field Recycled . | . . . . . Retrieved Matter . | . . . . . Parts Self-Destructed . | . . . . . Prevented . | . . . . . Kills | -11 -10 -10 -9 -9 ------- Run | Yrd Mat Min Mat Min Combat Hostiles Destroyed 36 | . 9 1 22 4 Guns 36 | . 9 1 22 4 Classes Destroyed 10 | 1 5 . 4 . Worker 4 | . 2 . 2 . Hauler 5 | . 2 . 3 . Recycler 7 | 1 3 . 3 . Mechanic 1 | . . . 1 . Operator 1 | . . . 1 . Watcher 6 | . 2 . 4 . Swarmer 14 | . 3 1 8 2 Grunt 14 | . 6 . 7 1 Brawler 2 | . . . 1 1 Sentry 6 | . . . 6 . Best Kill Streak 6 | 1 4 1 6 2 Combat Bots Only 4 | . 3 1 4 2 Max Kills in Single Turn 3 | 1 1 1 3 1 Gunslinging 1 | . . . 1 . Exploded . | . . . . . Melee . | . . . . . Uniques/NPCs Destroyed . | . . . . . Combat | -11 -10 -10 -9 -9 -------- Run | Yrd Mat Min Mat Min Hostile Shots Fired 107 | . 37 . 62 8 Missed 38 | . 12 . 25 1 Damage Taken 652 | . 278 . 307 67 Core 79 | . 24 . 55 . Absorbed by Shields . | . . . . . Ignored by Resistances 421 | . 179 . 200 42 Regen/Repaired (Parts) 118 | . . . 118 . Core Remaining (%) 95 | 100 . 90 . . Volleys Fired 98 | 2 34 1 53 8 Largest 3 | 2 3 3 3 3 Hottest 80 | 40 80 69 69 69 Shots Fired 292 | 4 102 3 159 24 Gun 292 | 4 102 3 159 24 Cannon . | . . . . . Launcher . | . . . . . Special . | . . . . . Kinetic 287 | 4 97 3 159 24 Thermal 5 | . 5 . . . Explosive . | . . . . . Electromagnetic . | . . . . . Robot Hit Streak 52 | 4 22 5 52 14 Robot Miss Streak 2 | . 1 . 2 1 Penetration Max . | . . . . . Secondary Targets 5 | . 1 . 4 . Max Gunslinging Chain 1 | . 1 . 1 . Shots Hit Robots 225 | 4 82 1 122 16 Core Hits 91 | 2 32 1 50 6 Critical Kills 1 | . 1 . . . Critical Parts Destroyed . | . . . . . Critical Strikes 1 | . 1 . . . Destroy 1 | . 1 . . . Melee Attacks . | . . . . . Impact . | . . . . . Slashing . | . . . . . Piercing . | . . . . . Sneak Attacks . | . . . . . Combat Hostiles . | . . . . . Follow-up Attacks . | . . . . . Damage Inflicted 3030 | 31 819 32 1921 227 Guns 3015 | 31 819 17 1921 227 Cannons . | . . . . . Explosions . | . . . . . Melee . | . . . . . Ramming 15 | . . 15 . . Kinetic 2970 | 31 774 17 1921 227 Thermal 45 | . 45 . . . Explosive . | . . . . . Electromagnetic . | . . . . . Impact . | . . . . . Slashing . | . . . . . Piercing . | . . . . . Highest Corruption 2 | . 2 2 . . Average Corruption 1 | . 1 2 . . Corruption Purged . | . . . . . Corruption Blocked . | . . . . . Effects 22 | . 20 2 . . Message Errors 6 | . 4 2 . . Matter Fused 2 | . 2 . . . Heat Flow Errors 1 | . 1 . . . Energy Discharges 1 | . 1 . . . Data Loss (minor) 5 | . 5 . . . Data Loss (major) 3 | . 3 . . . Misfires 2 | . 2 . . . Alerts 1 | . 1 . . . Weapon Failures 1 | . 1 . . . Overload Shots . | . . . . . Overflow Damage . | . . . . . Projectiles . | . . . . . Explosions . | . . . . . Melee . | . . . . . Knockbacks . | . . . . . Impact . | . . . . . Kinetic . | . . . . . Secondary . | . . . . . Self-Inflicted Damage . | . . . . . Shots . | . . . . . Rammed 3 | . . 3 . . Targets Rammed 3 | . . 3 . . Kicked . | . . . . . Crushed . | . . . . . Highest Temperature 214 | . 214 9 12 15 Average Temperature 28 | . 49 6 5 4 Received Heat Transfer 300 | . 141 . 141 18 Siege Activations . | . . . . . Robots Corrupted . | . . . . . Combat Hostiles . | . . . . . Parts Fried . | . . . . . Impact Corruptions . | . . . . . Robots Melted . | . . . . . Combat Hostiles . | . . . . . Parts Melted . | . . . . . Heat Transferred 100 | . 100 . . . Parts Sabotaged . | . . . . . Parts Stolen . | . . . . . Parts Stripped . | . . . . . Power Chain Reactions . | . . . . . Alert | -11 -10 -10 -9 -9 ------- Run | Yrd Mat Min Mat Min Peak Influence 294 | 5 179 45 294 54 Initial 47 | . 2 15 12 47 Average 55 | 1 41 30 91 33 Maximum Alert Level 1 | . . . 1 . Low Security (%) 98 | 100 100 100 95 100 Level 1 1 | . . . 4 . Level 2 . | . . . . . Level 3 . | . . . . . Level 4 . | . . . . . Level 5 . | . . . . . High Security . | . . . . . Max Security . | . . . . . Squads Dispatched 4 | . 2 . 2 . Investigation 4 | . 2 . 2 . Extermination . | . . . . . Reinforcement . | . . . . . Assault . | . . . . . Garrison . | . . . . . Intercept . | . . . . . Searches Triggered . | . . . . . Construction Impeded . | . . . . . Haulers Reinforced . | . . . . . Active Scanning Responses . | . . . . . Cargo Convoy Interrupts . | . . . . . Stealth | -11 -10 -10 -9 -9 --------- Run | Yrd Mat Min Mat Min Distress Signals 1 | . . . 1 . Communications Jammed . | . . . . . Distress Signals . | . . . . . Times Spotted 56 | . 16 1 35 4 Peak Tracking Total 4 | . 3 1 4 2 Tactical Retreats . | . . . . . Traps | -11 -10 -10 -9 -9 ------- Run | Yrd Mat Min Mat Min Traps Triggered 3 | . 3 . . . Indirectly . | . . . . . Trap Hack Attempts . | . . . . . Triggered . | . . . . . Disarmed . | . . . . . Reprogrammed . | . . . . . Reused . | . . . . . Traps Extracted . | . . . . . Installed . | . . . . . Triggered . | . . . . . Machines | -11 -10 -10 -9 -9 ---------- Run | Yrd Mat Min Mat Min Machines Disabled 2 | . 1 . . 1 Max in Single Turn 1 | . 1 . . 1 Machines Repaired . | . . . . . Machines Dismantled . | . . . . . Machines Sabotaged . | . . . . . Overloaded Fab Kills . | . . . . . Hacking | -11 -10 -10 -9 -9 --------- Run | Yrd Mat Min Mat Min Machines Accessed 16 | . 8 1 7 . Terminals 11 | . 6 . 5 . Fabricators . | . . . . . Repair Stations 1 | . . . 1 . Recycling Units 3 | . 2 . 1 . Scanalyzers . | . . . . . Garrison Access . | . . . . . Total Hacks 39 | . 15 1 23 . Successful 29 | . 10 1 18 . Failed 10 | . 5 . 5 . Catastrophic 1 | . . . 1 . Database Lockouts . | . . . . . Manual 5 | . 4 . 1 . Terminals 31 | . 13 . 18 . Fabricators . | . . . . . Repair Stations 4 | . . . 4 . Recycling Units 3 | . 2 . 1 . Scanalyzers . | . . . . . Garrison Access . | . . . . . Terminal Hacks 21 | . 7 1 13 . Record 8 | . . . 8 . Robot Analysis 4 | . 2 . 2 . Prototype ID Bank 2 | . 2 . . . Open Door 1 | . . 1 . . Branch Access Points 2 | . 1 . 1 . Locate Traps 2 | . 1 . 1 . Hauler Manifests 1 | . . . 1 . Zone Layout 1 | . 1 . . . Fabricator Hacks . | . . . . . Repair Station Hacks 4 | . . . 4 . Scan Component 2 | . . . 2 . Repair 2 | . . . 2 . Recycling Unit Hacks . | . . . . . Scanalyzer . | . . . . . Garrison Access Hacks . | . . . . . Unauthorized Hacks 4 | . 3 . 1 . Terminals 1 | . 1 . . . Disrupt 1 | . 1 . . . Fabricators . | . . . . . Repair Stations . | . . . . . Recycling Units 3 | . 2 . 1 . Tunnel 3 | . 2 . 1 . Scanalyzers . | . . . . . Garrison Access . | . . . . . Data Cores Recovered 1 | . . . 1 . Used . | . . . . . Hacking Detections 6 | . 4 . 2 . Full Trace Events 2 | . . . 2 . Feedback Events . | . . . . . Feedback Blocked . | . . . . . Robot Schematics Acquired . | . . . . . Robots Built . | . . . . . Authchips . | . . . . . Time . | . . . . . Total Robot Build Rating . | . . . . . Part Schematics Acquired . | . . . . . Parts Built . | . . . . . Authchips . | . . . . . Time . | . . . . . Total Part Build Rating . | . . . . . Parts Repaired 2 | . . . 2 . Time 52 | . . . 52 . Parts Recycled . | . . . . . Recycled Matter . | . . . . . Retrieved Matter . | . . . . . Retrieved Components . | . . . . . Parts Scanalyzed . | . . . . . Part Schematics Acquired . | . . . . . Parts Damaged . | . . . . . Bothacking | -11 -10 -10 -9 -9 ------------ Run | Yrd Mat Min Mat Min Used RIF Installer . | . . . . . Robots Hacked . | . . . . . Non-combat . | . . . . . Combat . | . . . . . Robot Hacks Applied . | . . . . . Relay Couplers Released . | . . . . . Fabnet Peak Effective % . | . . . . . Robots Rewired . | . . . . . Allies Hacked . | . . . . . Hacks Repelled . | . . . . . Allies | -11 -10 -10 -9 -9 -------- Run | Yrd Mat Min Mat Min Total Allies . | . . . . . Largest Group . | . . . . . Highest-Rated Group . | . . . . . Highest-Rated Ally . | . . . . . Total Orders . | . . . . . Ally Attacks 3 | . . . 3 . Total Damage . | . . . . . Kills . | . . . . . Allies Corrupted . | . . . . . Allies Melted . | . . . . . Intel | -11 -10 -10 -9 -9 ------- Run | Yrd Mat Min Mat Min Robot Analysis Total 4 | . 2 . 2 . Derelict Logs Recovered 1 | . . . . 1 Drone Launches 3 | . . . 3 . Drone Recoveries . | . . . . . Exploration | -11 -10 -10 -9 -9 ------------- Run | Yrd Mat Min Mat Min Turns Passed 3982 | 136 1332 78 1432 1004 Spaces Moved 1975 | 71 742 43 540 579 Core 4 | 4 . . . . Treads 1971 | 67 742 43 540 579 Legs . | . . . . . Wheels . | . . . . . Hover . | . . . . . Flight . | . . . . . Fastest Speed 50 | 50 160 160 160 160 Average Speed 175 | 153 160 160 215 160 Slowest Speed 240 | 160 160 160 240 160 Overloaded Moves . | . . . . . Propulsion Burnouts . | . . . . . Robots Hopped . | . . . . . Cave-ins Triggered . | . . . . . Exploration Rate (%) 57 | 5 92 15 79 96 Regions Visited 4 Branch Regions 2 Pre-discovered Areas 3 | . 2 . 1 . Known Exits Taken 4 | 1 1 1 1 . Unknown Exits Taken . | . . . . . Scrap Searched 1 | . . . . 1 Spaces Dug . | . . . . . Terrain Destroyed . | . . . . . Melee . | . . . . . Projectile . | . . . . . AOE . | . . . . . Terrain Rammed . | . . . . . Walls Destroyed . | . . . . . Machines Disabled . | . . . . . Actions | -11 -10 -10 -9 -9 --------- Run | Yrd Mat Min Mat Min Total 2299 | 94 822 49 695 639 Wait 133 | . 25 . 62 46 Move 1971 | 70 741 42 539 579 Hop . | . . . . . Pick Up 37 | 14 10 1 11 1 Fast Attach 5 | . . . 3 2 Attach 13 | 7 2 . 4 . Detach 1 | . . . 1 . Swap 13 | 1 6 . 6 . Drop 25 | . 4 2 16 3 Fire 98 | 2 34 1 53 8 Melee . | . . . . . Ram . | . . . . . Kick . | . . . . . Crush 3 | . . 3 . . Escape Stasis . | . . . . . Rewire . | . . . . . Trap . | . . . . . Miscellaneous . | . . . . . Route ------- -11/Scrapyard -10/Materials (discovered 4 exits: *Mat x2 / *Min x2) -10/Mines -9/Materials (discovered 6 exits: *Mat x2 / *Min x2 / *Sto x2) -9/Mines (discovered 2 exits: *Mat / *Exi) History --------- Turn | Location | Event 27 | -11/Scrapyard | Identified exit to Materials 27 | -11/Scrapyard | Discovered exit to Materials (range 15) 137 | -11/Scrapyard | Entered Materials 137 | -10/Materials | Evolved 1 slot: Weapon x1 295 | -10/Materials | Identified exit to Mines 303 | -10/Materials | Build established: Hacker-Gunner 415 | -10/Materials | Identified exit to Materials 415 | -10/Materials | Discovered exit to Materials (range 8) 879 | -10/Materials | Discovered exit to Materials (range 8) 1469 | -10/Materials | Entered Mines 1470 | -10/Mines | Assembled infested the area 1475 | -10/Mines | Assisted by a Guerilla fighting off Assembled 1494 | -10/Mines | Met a Derelict bent on vengeance 1506 | -10/Mines | Discovered exit to Materials (range 4) 1525 | -10/Mines | Found the Drone Emporium 1533 | -10/Mines | Found Prototype Device 1547 | -10/Mines | Entered Materials 1547 | -9/Materials | Evolved 2 slots: Utility x2 1547 | -9/Materials | Identified Bomb Drone Bay 1606 | -9/Materials | Repaired Lgt. Treads 1634 | -9/Materials | Repaired Lgt. Treads 1789 | -9/Materials | Identified exit to Mines 1789 | -9/Materials | Identified exit to Storage 1956 | -9/Materials | Identified exit to Materials 1956 | -9/Materials | Discovered exit to Materials (range 12) 2760 | -9/Materials | Discovered exit to Materials (range 15) 2979 | -9/Materials | Entered Mines 3177 | -9/Mines | Discovered exit to Materials (range 14) 3571 | -9/Mines | YI-UF0 nonchalantly dropped a Grenade Launcher on the ground 3588 | -9/Mines | Learned Materials security intel 3719 | -9/Mines | Deemed a non-threat by the Exiles lab entrance 3721 | -9/Mines | Identified exit to Exiles 3721 | -9/Mines | Discovered exit to Exiles (range 5) 3983 | -9/Mines | Self-destructed Last Messages --------------- 03544_ Acquired 20 matter. 03547_ Acquired 17 matter. 03570_ R-06 Scavenger collects Lgt. Assault Rifle. 03571_ YI-UF0 nonchalantly drops a Grenade Launcher on the ground. 03576_ R-06 Scavenger collects Lgt. Ion Engine. 03588_ Acquired derelict log, extracted data. Data stored: Materials security intel. 03599_ K-01 Serf collects debris. 03612_ K-01 Serf cleans the Core Extractor. 03618_ YI-UF0 mumbles something. 03719_ "No threat detected, you may enter." 03721_ EXIT=FOUND: EXILES 03848_ YI-UF0 mumbles something. 03927_ B-36 Bruiser destroyed. 03927_ Seismic Survey Station disabled. 03937_ G-34 Mercenary destroyed. 03940_ Acquired 34 matter. 03982_ K-01 Serf collects debris. Map ----- +----------------------------------------------------+ | | | | | | | | | | | | | | | | | | | | | | | | | | | ??????????????????????????????????? | | ??????????????????????????????????? | | ####??????????????????????????????? | | %##?????????????????????????????? | | = %#?????????????????????#####???? | | #????????????????????## #???? | | ##???????????????????# #???? | | #??????????????????## ##???? | | #??????????????????# ##???? | | ##????????????####### #???? | | ##?????????????# #???? | | #???##?????????# ##???? | | #??? ??????????# @####????? | | #? #??????????# #???????? | | ##? #??????????###### #???????? | | ##? #???????????????# #???????? | | ## #???????????????# #???????? | | ##??????????????# #???????? | | #????????????### ###?????? | | #????????????# #?????? | | #????????????# #?????? | | ##????????????# """ #?????? | | ##????????????# """ #?????? | | ##???????????# """ #?????? | | #???????????# #?????? | | #???????????# """ *#?????? | | #???????????# """[ #?????? | | # ##???????????# " "k #?????? | | ## ##????????????# /%! #?????? | | ?## ##?????????????##### ##?????? | | ??## ##?????????????????# #??????? | | ??## ##???????########## #??????? | | ??# #???????# #??????? | | ?## #???????# ##########??????? | | ## #???????# #???????????????? | | ######### #??????####?????? | | < ## #???#### ##????? | +----------------------------------------------------+ Best States ------------- Heat Dissipation 28 Energy Generation 12 Energy Capacity 265 Matter Stores 300 Matter Capacity 500 Sight Range 16 Terrain Scan Density 10 Resistance: KI 35 Resistance: TH 35 Resistance: EX 35 Resistance: EM 35 Resistance: I 35 Resistance: S 35 Resistance: P 35 Core Shielding 20 Evasion (%) 40 Targeting Accuracy 6 Recoil Reduction 2 Offensive Hacking 20 Item Schematics ----------------- None Robot Schematics ------------------ None Fabricated ------------ Nothing Alien Tech Used ----------------- None Achievements -------------- None Challenges ------------ None Game ------ Seed TargetParticleSplitter Manual? 0 Play Time 00:28:37 Cumulative 1140.0 hours Start 2024.03.01 @ 13:03:40 End 2024.03.01 @ 15:46:25 Sessions 3 Manual Loads 0 Difficulty Explorer Special Mode None Game No. 753 Rogue 711 Adventurer 6 Explorer 36 Win Type - Total 20 Types 11/1/4/4/0/0/0/0/0 Lore% 83 Gallery% 88 Achievement% 81 Wizard Run 0 Options --------- Layout 1 ASCII 0 Keyboard 0 Movement Mouse Keybinds 0 Fullscreen 1 Font 32/SmallcapsGlow Map View 50x35 Zoom Use 0% Tactical HUD 1 Map Filters NONE Filters NONE Steam 1 RUN: 21fdf9ad-25dd-4bc9-8e79-f0c03a5009d8